Cogmind - Beta 15 @@@ ROGUE MODE // 2025.07.19 @ 15:32:55 Player: arkn Result: Destroyed by 7I-EJ6(R) with Subdweller Beam Cannon Performance ------------- Evolutions (0) 0 Regions Visited (1) 200 Robots Destroyed (18) 90 Value Destroyed (370) 370 Prototype IDs (0) 0 Alien Tech Used (0) 0 Bonus (0) 0 TOTAL SCORE: 660 Bonus ------- None Cogmind --------- Core Integrity 0/250 Matter 255/300 Energy 229/250 System Corruption 1% Temperature Cool (87) Movement Treading (240) Ox1 Location -10/Materials Parts ------- > --- POWER (1) -------- Ion Engine > --- PROPULSION (2) --- Light Treads > --- UTILITY (2) ------ Large Storage Unit Targeting Computer > --- WEAPON (2) ------- Light Cannon Light Cannon > --- INVENTORY (15) --- Light Treads Light Treads Aluminum Leg Aluminum Leg Wheel Compact Wheel Signal Interpreter Seismic Detector Medium Laser Light Cannon Grenade Launcher Welding Torch Peak State ------------ > --- POWER ------------ Light Ion Engine > --- PROPULSION ------- Light Treads Light Treads > --- UTILITY ---------- Heat Sink Large Storage Unit > --- WEAPON ----------- Medium Laser Medium Laser > --- INVENTORY -------- Ion Engine Light Treads Light Treads Aluminum Leg Aluminum Leg Wheel Compact Wheel Signal Interpreter Medium Laser Grenade Launcher Welding Torch [Rating: 8] Favorites ----------- Power Light Ion Engine Engine Light Ion Engine Propulsion Light Treads Treads Light Treads Utility Large Storage Unit Device Heat Sink Storage Large Storage Unit Processor Targeting Computer Weapon Medium Laser Energy Gun Medium Laser Ballistic Gun Light Assault Rifle Ballistic Cannon Light Cannon Launcher Grenade Launcher Build | -11 -10 ------- Run | Yrd Mat Slots Evolved . | . . Power . | . . Propulsion . | . . Utility . | . . Weapon . | . . Parts Attached 19 | 5 14 Power 2 | 1 1 Engine 2 | 1 1 Core . | . . Reactor . | . . Propulsion 5 | 2 3 Treads 5 | 2 3 Leg . | . . Wheel . | . . Hover . | . . Flight . | . . Utility 4 | 1 3 Device 1 | . 1 Storage 2 | 1 1 Processor 1 | . 1 Hackware . | . . Protection . | . . Artifact . | . . Weapon 8 | 1 7 Energy Gun 4 | 1 3 Energy Cannon . | . . Ballistic Gun 1 | . 1 Ballistic Cannon 2 | . 2 Launcher 1 | . 1 Special Weapon . | . . Impact Weapon . | . . Slashing Weapon . | . . Piercing Weapon . | . . Special Melee Weapon . | . . Unidentified Prototypes . | . . Parts Lost 8 | . 8 Power 1 | . 1 Propulsion 3 | . 3 Utility 1 | . 1 Weapon 3 | . 3 Highest Loss Streak 5 | . 5 To Critical Strikes . | . . Average Backups 9 | 3 9 Power . | . . Propulsion 4 | 2 5 Utility 1 | . 1 Weapon 1 | . 1 Tool/Special . | . . Unused Backups 8 | . 8 Power . | . . Propulsion 4 | . 4 Utility 2 | . 2 Weapon 1 | . 1 Tool/Special 1 | . 1 Average Slot Usage (%) 87 | . 87 Engine 13 | . 13 Treads 27 | . 27 Device 7 | . 7 Storage 14 | . 14 Energy Gun 18 | . 18 Ballistic Gun 3 | . 3 Peak Build Rating 8 | 5 8 Average Rating 6 | 3 6 On Entrance 2 | . 5 Naked Turns . | . . Heaviest Build 31 | 10 31 Greatest Support 40 | 40 40 Greatest Overweight (x) 1 | . 1 Average Overweight (x) . | . . Largest Inventory Capacity 15 | 8 15 Average Capacity 12 | 6 13 Most Carried 15 | 5 15 Average Carried 9 | 3 9 Final Capacity 15 | 8 15 Final Carried 12 | 5 12 Class Distribution -------------------- 100% | Mutant Dominant Class ---------------- Mutant | -10/Materials Resources | -11 -10 ----------- Run | Yrd Mat Matter Collected 401 | 203 198 Remotely . | . . Salvage Created 545 | . 545 Parts 39 | . 39 Haulers Intercepted 2 | . 2 Recyclers Shooed 1 | . 1 Parts Field Recycled . | . . Retrieved Matter . | . . Parts Self-Destructed . | . . Prevented . | . . Kills | -11 -10 ------- Run | Yrd Mat Combat Hostiles Destroyed 14 | . 14 Guns 9 | . 9 Cannons 1 | . 1 AOE 2 | . 2 Classes Destroyed 4 | . 4 Hauler 2 | . 2 Watcher 2 | . 2 Swarmer 7 | . 7 Grunt 7 | . 7 Best Kill Streak 3 | . 3 Combat Bots Only 3 | . 3 Max Kills in Single Turn 2 | . 2 Gunslinging . | . . Exploded 2 | . 2 Melee . | . . Uniques/NPCs Destroyed . | . . Combat | -11 -10 -------- Run | Yrd Mat Hostile Shots Fired 134 | . 134 Missed 42 | . 42 Hits 92 | . 92 Projectile 92 | . 92 Critical Strikes 1 | . 1 Damage Taken 1235 | . 1235 Core 259 | . 259 Absorbed by Shields . | . . Core Remaining (%) 100 | 100 . Volleys Fired 58 | . 58 Largest 2 | . 2 Hottest 100 | . 100 Shots Fired 103 | . 103 Gun 92 | . 92 Cannon 10 | . 10 Launcher 1 | . 1 Special . | . . Kinetic 21 | . 21 Thermal 81 | . 81 Explosive 1 | . 1 Electromagnetic . | . . Robot Hit Streak 9 | . 9 Robot Miss Streak 5 | . 5 Penetration Max . | . . Secondary Targets 1 | . 1 Max Gunslinging Chain 1 | . 1 Shots Hit Robots 64 | . 64 Core Hits 29 | . 29 Critical Kills . | . . Critical Parts Destroyed . | . . Critical Strikes 4 | . 4 Burn 4 | . 4 Melee Attacks . | . . Impact . | . . Slashing . | . . Piercing . | . . Sneak Attacks . | . . Combat Hostiles . | . . Follow-up Attacks . | . . Damage Inflicted 944 | . 944 Guns 713 | . 713 Cannons 107 | . 107 Explosions 124 | . 124 Melee . | . . Ramming . | . . Kinetic 174 | . 174 Thermal 646 | . 646 Explosive 124 | . 124 Electromagnetic . | . . Impact . | . . Slashing . | . . Piercing . | . . Highest Corruption 1 | . 1 Average Corruption 1 | . 1 Corruption Purged . | . . Corruption Blocked . | . . Effects 5 | . 5 Message Errors 4 | . 4 Heat Flow Errors 1 | . 1 Overload Shots . | . . Overflow Damage 30 | . 30 Projectiles . | . . Explosions 30 | . 30 Melee . | . . Knockbacks 2 | . 2 Impact . | . . Kinetic 2 | . 2 Secondary . | . . Self-Inflicted Damage . | . . Shots . | . . Rammed . | . . Targets Rammed . | . . Kicked . | . . Crushed . | . . Highest Temperature 246 | . 246 Average Temperature 56 | . 56 Received Heat Transfer 730 | . 730 Siege Activations . | . . Martial Activations . | . . Shielding Activations . | . . Robots Disrupted . | . . Combat Hostiles . | . . Robots Corrupted . | . . Combat Hostiles . | . . Parts Fried . | . . Impact Corruptions . | . . Robots Melted 2 | . 2 Combat Hostiles 2 | . 2 Parts Melted 4 | . 4 Heat Transferred 2184 | . 2184 Parts Sabotaged . | . . Parts Stolen . | . . Parts Stripped . | . . Power Chain Reactions . | . . Alert | -11 -10 ------- Run | Yrd Mat Maximum Alert Level . | . . Low Security (%) 100 | 100 100 Level 1 . | . . Level 2 . | . . Level 3 . | . . Level 4 . | . . Level 5 . | . . High Security . | . . Max Security . | . . Peak Influence 123 | . 123 Initial . | . . Average 29 | . 33 Influence Increases 406 | . 406 Destroy 0b10 Robot/C 280 | . 280 Destroy 0b10 Robot/NC 20 | . 20 Destroy Leader 78 | . 78 Destroy Structure 13 | . 13 Lose Combat Pursuer 15 | . 15 Influence Decreases 385 | . 385 Time Decay 315 | . 315 Lost Part 70 | . 70 Squads Dispatched 2 | . 2 Investigation . | . . Extermination . | . . Reinforcement 2 | . 2 Assault . | . . Garrison . | . . Intercept . | . . Searches Triggered . | . . Construction Impeded . | . . Haulers Reinforced . | . . Active Scanning Responses . | . . Cargo Convoy Interrupts . | . . Stealth | -11 -10 --------- Run | Yrd Mat Distress Signals 3 | . 3 Communications Jammed . | . . Distress Signals . | . . Times Spotted 27 | . 27 Peak Tracking Total 8 | . 8 Tactical Retreats 1 | . 1 Traps | -11 -10 ------- Run | Yrd Mat Traps Triggered 2 | . 2 Indirectly . | . . Trap Hack Attempts . | . . Triggered . | . . Disarmed . | . . Reprogrammed . | . . Reused . | . . Traps Extracted . | . . Installed . | . . Triggered . | . . Machines | -11 -10 ---------- Run | Yrd Mat Machines Disabled . | . . Max in Single Turn . | . . Machines Repaired . | . . Machines Dismantled . | . . Machines Sabotaged . | . . Overloaded Fab Kills . | . . Hacking | -11 -10 --------- Run | Yrd Mat Machines Accessed 3 | . 3 Terminals 3 | . 3 Fabricators . | . . Repair Stations . | . . Recycling Units . | . . Scanalyzers . | . . Garrison Access . | . . Total Hacks 7 | . 7 Successful 4 | . 4 Failed 3 | . 3 Catastrophic . | . . Database Lockouts . | . . Manual 7 | . 7 Terminals 7 | . 7 Fabricators . | . . Repair Stations . | . . Recycling Units . | . . Scanalyzers . | . . Garrison Access . | . . Terminal Hacks . | . . Fabricator Hacks . | . . Repair Station Hacks . | . . Recycling Unit Hacks . | . . Scanalyzer . | . . Garrison Access Hacks . | . . Unauthorized Hacks 4 | . 4 Terminals 4 | . 4 Track 2 | . 2 Botnet 1 | . 1 Operators 1 | . 1 Fabricators . | . . Repair Stations . | . . Recycling Units . | . . Scanalyzers . | . . Garrison Access . | . . Data Cores Recovered . | . . Used . | . . Hacking Detections 2 | . 2 Full Trace Events . | . . Feedback Events . | . . Feedback Blocked . | . . Robot Schematics Acquired . | . . Robots Built . | . . Authchips . | . . Time . | . . Total Robot Build Rating . | . . Part Schematics Acquired . | . . Parts Built . | . . Authchips . | . . Time . | . . Total Part Build Rating . | . . Parts Repaired . | . . Time . | . . Parts Recycled . | . . Recycled Matter . | . . Retrieved Matter . | . . Retrieved Components . | . . Parts Scanalyzed . | . . Part Schematics Acquired . | . . Parts Damaged . | . . Bothacking | -11 -10 ------------ Run | Yrd Mat Used RIF Installer . | . . Robots Hacked . | . . Non-combat . | . . Combat . | . . Robot Hacks Applied . | . . Relay Couplers Released . | . . Fabnet Peak Effective % . | . . Robots Rewired . | . . Allies Hacked . | . . Hacks Repelled . | . . Allies | -11 -10 -------- Run | Yrd Mat Total Allies . | . . Largest Group . | . . Highest-Rated Group . | . . Highest-Rated Ally . | . . Total Orders . | . . Ally Attacks . | . . Total Damage . | . . Kills . | . . Allies Corrupted . | . . Allies Melted . | . . Intel | -11 -10 ------- Run | Yrd Mat Active Infowar (turns) . | . . Robot Analysis Total . | . . Derelict Logs Recovered . | . . Drone Launches . | . . Drone Recoveries . | . . Exploration | -11 -10 ------------- Run | Yrd Mat Turns Passed 1060 | 116 944 Spaces Moved 513 | 67 446 Core 2 | 2 . Treads 511 | 65 446 Legs . | . . Wheels . | . . Hover . | . . Flight . | . . Fastest Speed 50 | 50 160 Average Speed 159 | 156 160 Slowest Speed 240 | 160 240 Overloaded Moves . | . . Propulsion Burnouts . | . . Robots Hopped . | . . Potential Cave-ins . | . . Cave-ins Triggered . | . . Exploration Rate (%) 40 | 5 76 Regions Visited 1 Branch Regions . Pre-discovered Areas . | . . Known Exits Taken . | . . Unknown Exits Taken 1 | 1 . Scrap Searched . | . . Spaces Dug . | . . Terrain Destroyed 11 | . 11 Melee . | . . Projectile . | . . AOE 11 | . 11 Terrain Rammed . | . . Walls Destroyed . | . . Machines Disabled . | . . Actions | -11 -10 --------- Run | Yrd Mat Total 647 | 76 571 Wait 37 | . 37 Move 512 | 66 446 Hop . | . . Pick Up 17 | 5 12 Fast Attach 11 | 5 6 Attach 4 | . 4 Detach . | . . Swap 5 | . 5 Drop 3 | . 3 Fire 58 | . 58 Melee . | . . Ram . | . . Kick . | . . Crush . | . . Escape Stasis . | . . Rewire . | . . Trap . | . . Miscellaneous . | . . Route ------- -11/Scrapyard -10/Materials (discovered 3 exits: [*Mat x2] / [*Sub]) History --------- Turn | Location | Event 44 | -11/Scrapyard | Discovered new exit (range 14) 117 | -11/Scrapyard | Entered Materials 307 | -10/Materials | Build established: Mutant 526 | -10/Materials | Discovered new exit (range 13) 864 | -10/Materials | Discovered new exit (range 16) 988 | -10/Materials | Discovered new exit (range 13) 1017 | -10/Materials | Derelicts attacked the area 1017 | -10/Materials | Core integrity fell below 50% 1038 | -10/Materials | Core integrity fell below 20% 1061 | -10/Materials | Destroyed by 7I-EJ6(R) with Subdweller Beam Cannon Last Messages --------------- 01027_ Acquired Lgt. Treads. 01028_ Lgt. Treads destroyed. 01031_ Med. Laser destroyed. 01031_ Critical hit (Meltdown: +250). 01033_ Heat Sink destroyed. 01033_ Acquired Lgt. Cannon. 01037_ Med. Laser destroyed. 01039_ Acquired Lgt. Cannon. 01040_ Acquired 35 matter. 01042_ R-06 Scavenger collects Lgt. Cannon. 01044_ Acquired Lgt. Cannon. 01048_ G-34 Mercenary knocked back. 01055_ 7S-U86(R) destroyed. 01057_ R0-ABM(R) triggered Shock Trap. 01057_ The floor emits a surge of raw power. 01057_ S-10 Pest destroyed. 01058_ R0-ABM(R) triggered Explosive Trap. 01058_ An explosion rips through the floor. 01058_ Processing Tank disabled. 01061_ Lgt. Treads destroyed. Map ----- +----------------------------------------------------+ | | | | | | | | | | | | | | | | | | | ?????????????????????????????????????????????????? | | ????????????????????????????????????????????#????? | | ????????????????????????#???????????????????# ??? | | ???????????????????????? ???????????????????# """ | | ???????????????????????? ""?????????????????# """ | | ???????????????????????? "T?????????????????# """ | | ???????????????????????? ?????????????????# """ | | ???????????????????????? ?????????????????# """ | | ???????????????????????? ?????????????????# | | ???????????????????????? ?????????????????# | | ???????????????? ??????? ??????#??????????# | | ???????????????? ???????#+#?????## ????????###+## | | ???????????????? ???????# #?????# ###+### | | ???????????????# ???????#=#?????# | | ??????o????????# ???????#s#?????# " | | ???????????????# ???????#%#?????# | | ???????????????# ???????#@#?????# ####### | | ???????????????# ########&#?????############## # | | ???????????????# ^= %]#????????# """ # # | | ???????????????# %%[####????# """ # # | | ???????????????# !g% ##???# """ =/ # | | ???????????????#^ "" =&; <#???# *# # | | ???????????????# " # ##???# ""# # | | ???????????????# " " #????# T"# # | | ???????????????# """R T #????# ""# # | | ???????????????# """ " #????# # # | | ???????????????# % # #????########### # | | ???????????????# + ################ # | | ???????????????# ########## ## | | ?????????????###%############### % | | ?????????????# % tr u % | | ?????????????# #################### #### | | ?????????????# #??????????????????# % #?## | | ?????????????#! % #??????#######?????# ! #??# | | ?????????????# #??????# ####### #??# | | ?????????????## ######### #??# | | ??????????????# # ## #??? | | ??????????????# + ## #??? | | ??????????????# # ! ## ###+####### #??? | | ??????????????# # ! ### ## ## #??? | | ??????????????# # #?# ## ## #### | +----------------------------------------------------+ Best States ------------- Heat Dissipation 35 Energy Generation 10 Energy Capacity 250 Matter Stores 300 Matter Capacity 300 Sight Range 16 Terrain Scan Density 10 Evasion (%) 40 Targeting Accuracy 5 Recoil Reduction 2 Item Schematics ----------------- None Robot Schematics ------------------ None Fabricated ------------ Nothing Repaired ---------- Nothing Alien Tech Used ----------------- None Achievements -------------- None Challenges ------------ None Game ------ Seed CoolingCorruptionStabilizer Manual? 0 Play Time 00:43:56 Cumulative 189.9 hours Start 2025.07.14 @ 21:17:10 End 2025.07.19 @ 15:32:55 Sessions 2 Manual Loads 0 Difficulty Rogue Special Mode None Game No. 82 Rogue 82 Adventurer 0 Explorer 0 Win Type - Total 4 Types 4/0/0/0/0/0/0/0/0/0 Lore% 49 Gallery% 53 Achievement% 55 Wizard Run 0 Options --------- Layout 0 ASCII 0 Keyboard 0 Movement Numpad Keybinds 0 Fullscreen 2 Font 24/Smallcaps Map View 113x50 Zoom Use 0% Tactical HUD 1 Map Filters NONE Filters NONE Steam X RUN: 6b5e43dc-587a-44e4-86f1-0929e4b903dd